[Event "European Women Blitz-ch 2024"]
[Site "Monaco"]
[Date "2025.01.10"]
[Round "4.12"]
[White "Tsolakidou, Stavroula"]
[Black "Kubicka, Anna"]
[Result "1-0"]
[Annotator "TA"]
[ECO "B94"]
[WhiteElo "2451"]
[BlackElo "2230"]
[PlyCount "95"]
[EventDate "2025.01.06"]
[EventType "swiss"]
[EventCountry "MNC"]
[SourceTitle "playchess.com"]
[Source "ChessBase"]
[SourceQuality "1"]
[TimeControl "180+2"]

{[%evp 11,95,11,23,17,28,22,23,18,22,24,31,0,21,14,88,63,57,52,72,42,38,49,79,92,87,81,361,327,338,316,352,332,343,352,379,308,367,358,367,357,476,220,309,278,283,257,254,171,302,296,245,237,257,258,633,632,598,435,900,900,931,891,1017,700,877,872,1157,781,1600,751,883,849,828,572,29983,5949,5942,5942,5935,5935,5927,2816,5920,5920,4598,2172]} 1. e4 {[%emt 0:00:03]} c5 {[%emt 0:00:01]} 2. Nf3 {[%emt 0:00:01]} d6 {[%emt 0:00:01]} 3. d4 {[%emt 0:00:02]} cxd4 {[%emt 0:00:01]} 4. Nxd4 {[%emt 0:00:01]} Nf6 {[%emt 0:00:02]} 5. Nc3 {[%emt 0:00:02]} a6 {[%emt 0:00:01]} 6. Bg5 {[%emt 0:00:02][%cal Bc1g5,Bg5h4,Bh4g3][%mdl 32]} Nbd7 {[%emt 0:00:01]} 7. a3 {[%emt 0:00:02]} h6 {[%emt 0:00:04]} 8. Bh4 {[%emt 0:00:04]} e6 {[%emt 0:00:06]} 9. Qe2 {[%emt 0:00:18]} Be7 {[%emt 0:00:03]} 10. O-O-O {[%emt 0:00:04]} Qc7 {[%emt 0:00:13]} 11. g4 {[%emt 0:00:18]} b5 {[%emt 0:00:19]} 12. Bg3 {[%emt 0:00:06]} Qc5 {[%emt 0:00:41]} (12... Bb7 $11 {remains equal.}) 13. h4 {[%emt 0:00:10]} Bb7 {[%emt 0:00:02]} 14. Bg2 {[%emt 0:00:07][%cal Og4g5]} Rc8 {[%emt 0:00:28]} 15. Nb3 {[%emt 0:00:11][%cal Bd4b3,Bb3a5,Ba5b7,Bb7d6][%mdl 32]} (15. e5 {is interesting.} Bxg2 16. exf6 Bxf6 17. Nxe6 fxe6 18. Qxe6+ Kd8 19. Bxd6 Rc6 20. Rhe1) 15... Qc4 {[%emt 0:00:24]} 16. Qxc4 {[%emt 0:00:16]} Rxc4 {[%emt 0:00:07]} 17. Na5 $36 {[%emt 0:00:10][%mdl 2048] White is really pushing.} Rxc3 {[%emt 0:00:08]} 18. Nxb7 {[%emt 0:00:07]} (18. bxc3 Bxe4 19. f3 Bd5 $17) 18... Rc4 $2 {[%emt 0:00:16][%mdl 8192]} (18... Rxg3 $16 19. fxg3 O-O) 19. Nxd6+ $18 {[%emt 0:00:15]} Bxd6 {[%emt 0:00:42]} 20. Rxd6 {[%emt 0:00:03]} ({Weaker is} 20. Bxd6 Nxg4 21. Rd2 Nc5 $18) 20... Rc8 {[%emt 0:00:00]} 21. Rhd1 {[%emt 0:00:05]} Nc5 {[%emt 0:00:00]} 22. f3 {[%emt 0:00:47]} O-O {[%emt 0:00:00]} 23. g5 {[%emt 0:00:05]} Nh5 {[%emt 0:00:02]} 24. Bh2 {[%emt 0:00:05]} hxg5 {[%emt 0:00:02]} 25. hxg5 {[%emt 0:00:02]} g6 {[%emt 0:00:04]} 26. f4 {[%emt 0:00:03]} (26. b4 $142) 26... a5 {[%emt 0:00:02]} (26... Ng7 {was worth a try.} 27. Kb1 Rfe8) 27. Kb1 {[%emt 0:00:06]} b4 {[%emt 0:00:06]} 28. axb4 {[%emt 0:00:10]} axb4 {[%emt 0:00:00]} 29. Rb6 {[%emt 0:00:06]} b3 {[%emt 0:00:00]} (29... Rfd8 $142 30. Rbd6 (30. Rxd8+ Rxd8 31. f5 Rd2 $16) 30... Rxd6 31. Rxd6 b3 32. cxb3 Nxb3) 30. cxb3 {[%emt 0:00:03]} Rcd8 {[%emt 0:00:00]} 31. Rbd6 {[%emt 0:00:04]} Rb8 {[%emt 0:00:02]} 32. f5 {[%emt 0:00:04]} exf5 $2 {[%emt 0:00:02]} (32... Rxb3 33. Rd8 Rxd8 34. Rxd8+ Kh7) 33. exf5 {[%emt 0:00:01]} gxf5 {[%emt 0:00:02][%cal Bg6f5,Bf5f4,Bf4f3,Bf3e2][%mdl 32]} 34. Rc6 {[%emt 0:00:07]} Rb5 {[%emt 0:00:01]} (34... Ne6 $142 35. Bxb8 Rxb8) 35. Bf1 {[%emt 0:00:00]} Rxb3 {[%emt 0:00:03]} 36. Rxc5 {[%emt 0:00:00]} Re8 {[%emt 0:00:02]} 37. Rc2 {[%emt 0:00:00]} f4 {[%emt 0:00:01]} 38. Bc4 {[%emt 0:00:02]} Rh3 {[%emt 0:00:03]} 39. Bg1 {[%emt 0:00:01]} f3 {[%emt 0:00:01]} 40. Bd4 {[%emt 0:00:03] Black must now prevent g6.} Nf4 {[%emt 0:00:02]} 41. Rf1 {[%emt 0:00:02]} Ne2 {[%emt 0:00:01]} 42. Bxe2 {[%emt 0:00:02]} Rxe2 {[%emt 0:00:03]} 43. Rxe2 {[%emt 0:00:01]} (43. Rc8+ $142 Kh7 44. Rh8+ Kg6 45. Rxh3 f2 46. Bxf2 f5 47. gxf6 Kxf6 48. Bg3+ Ke6 49. Rh6+ (49. Re1 Rxe1+ 50. Bxe1 Kd5 $18) 49... Kd5 50. Rd1+ Kc4 51. Rh4+ Kc5 52. Rh5+ Kc6 53. Rd6+ Kb7 54. Rh7+ Kc8 55. Ra6 Re7 56. Rxe7 Kd8 57. Bd6 Kc8 58. Ra8#) 43... fxe2 {[%emt 0:00:01] KRB-KR} 44. Re1 {[%emt 0:00:01]} Rd3 {[%emt 0:00:01]} 45. Bc3 {[%emt 0:00:01]} Kh7 {[%emt 0:00:04]} 46. Rxe2 {[%emt 0:00:01]} Kg6 {[%emt 0:00:01]} 47. Rf2 {[%emt 0:00:01]} Rd7 {[%emt 0:00:03]} 48. Bf6 {[%emt 0:00:02]} 1-0

[Event "European Women Blitz-ch 2024"]
[Site "Monaco"]
[Date "2025.01.10"]
[Round "4.13"]
[White "Kosteniuk, Alexandra"]
[Black "Prado Acebo, Ines"]
[Result "1-0"]
[Annotator "TA"]
[ECO "B08"]
[WhiteElo "2484"]
[BlackElo "2176"]
[PlyCount "61"]
[EventDate "2025.01.06"]
[EventType "swiss"]
[EventCountry "MNC"]
[SourceTitle "playchess.com"]
[Source "ChessBase"]
[SourceQuality "1"]
[TimeControl "180+2"]

{[%evp 14,61,5,0,3,0,0,-14,10,-5,36,46,36,50,50,-17,386,354,366,88,313,63,206,197,178,179,277,272,321,114,106,99,89,109,143,152,177,179,236,218,219,220,223,137,158,89,286,270,29977,29978]} 1. e4 {[%emt 0:00:01]} c5 {[%emt 0:00:01]} 2. d4 {[%emt 0:00:01]} cxd4 {[%emt 0:00:01]} 3. Qxd4 {[%emt 0:00:01]} Nc6 {[%emt 0:00:04]} 4. Qd3 {[%emt 0:00:01]} g6 {[%emt 0:00:13]} 5. Nc3 {[%emt 0:00:01]} Bg7 {[%emt 0:00:02]} 6. Nf3 {[%emt 0:00:01]} d6 {[%emt 0:00:02]} 7. Be2 {[%emt 0:00:01]} Nf6 {[%emt 0:00:01][%cal Bg8f6,Bf6d7,Bd7c5][%mdl 32]} 8. O-O {[%emt 0:00:01]} O-O {[%emt 0:00:02]} 9. Nd5 {[%emt 0:00:01]} Nd7 {[%emt 0:00:10]} 10. c3 {[%emt 0:00:01]} a6 {[%emt 0:00:10]} 11. a4 {[%emt 0:00:05]} Rb8 {[%emt 0:00:08]} 12. Bg5 {[%emt 0:00:05]} h6 {[%emt 0:00:24]} 13. Bh4 {[%emt 0:00:02]} Nc5 {[%emt 0:00:03]} 14. Qe3 {[%emt 0:00:08]} (14. Qc2 $14) 14... b5 $2 {[%emt 0:00:13][%mdl 8192]} (14... g5 $1 $11 {and Black is okay.} 15. b4 Nxa4) 15. axb5 {[%emt 0:00:01]} axb5 {[%emt 0:00:01]} 16. Rfd1 $2 {[%emt 0:00:02]} (16. Nd4 $18 Nxd4 17. Nxe7+ (17. cxd4 g5 $18) 17... Kh7 18. cxd4) 16... Bg4 $2 {[%emt 0:00:15]} (16... g5 $16) 17. h3 $2 {[%emt 0:00:25]} ({White has to play} 17. Nd4 $18 Bxd4 18. cxd4 Bxe2 19. Qxe2) 17... Be6 {[%emt 0:00:15]} (17... Bxf3 $14 18. gxf3 (18. Qxf3 g5 $16) 18... g5) 18. Nd4 $1 $18 {[%emt 0:00:09]} Bxd5 {[%emt 0:00:20]} 19. exd5 {[%emt 0:00:03]} Nxd4 {[%emt 0:00:30]} (19... Ne5 $142 20. b4 (20. Bxb5 Nb3 $14) (20. Nxb5 f5 $18) 20... Na4 21. Bxb5 Nb2) 20. cxd4 {[%emt 0:00:02]} g5 {[%emt 0:00:06]} 21. Bxg5 $2 {[%emt 0:00:23]} (21. dxc5 $18 {and the rest is easy.} gxh4 22. c6) 21... hxg5 $16 {[%emt 0:00:04]} 22. dxc5 {[%emt 0:00:01]} dxc5 {[%emt 0:00:02] Black is weak on the light squares} 23. Qxg5 {[%emt 0:00:04]} Rb6 {[%emt 0:00:07]} 24. Ra7 {[%emt 0:00:08] White has more active pieces.} Rf6 {[%emt 0:00:08]} 25. Qe3 {[%emt 0:00:05]} (25. Bxb5 Qb6 26. Rxe7 Qxb5 $16) 25... Re8 {[%emt 0:00:19]} (25... Qd6 $142 26. Rxe7 Rg6 27. Bxb5 Bxb2) 26. Bxb5 {[%emt 0:00:02]} Qb6 {[%emt 0:00:04]} 27. Bxe8 {[%emt 0:00:06]} Qxa7 {[%emt 0:00:01]} 28. b3 {[%emt 0:00:09]} Kf8 {[%emt 0:00:02] [#]} 29. Ba4 {[%emt 0:00:03]} (29. Bb5 $142 $1) 29... Rg6 $2 {[%emt 0:00:03] [#]} (29... Rd6 $16) 30. d6 $1 $18 {[%emt 0:00:07][%cal Bd5d6,Bd6d7][%mdl 32] Black must now prevent d7.} Re6 $2 {[%emt 0:00:05]} (30... Bd4 $18) 31. d7 {[%emt 0:00:04]} 1-0

[Event "European Women Blitz-ch 2024"]
[Site "Monaco"]
[Date "2025.01.10"]
[Round "4.14"]
[White "Hrebenshchykova, Yelyzaveta"]
[Black "Khotenashvili, Bella"]
[Result "1-0"]
[Annotator "TA"]
[ECO "A30"]
[WhiteElo "2280"]
[BlackElo "2420"]
[PlyCount "117"]
[EventDate "2025.01.06"]
[EventType "swiss"]
[EventCountry "MNC"]
[SourceTitle "playchess.com"]
[Source "ChessBase"]
[SourceQuality "1"]
[TimeControl "180+2"]

{[%evp 22,117,-43,-62,-4,-4,15,0,0,0,0,-41,-26,-163,-161,-169,-160,-214,-203,-264,-267,-258,-257,-245,-167,-200,-184,-178,-104,-202,-89,-207,-212,-212,-200,-214,-198,-208,-187,-204,-169,-199,-200,-307,-244,-272,-232,-1284,-31,-164,-156,-142,883,875,902,931,924,907,812,631,636,581,581,581,606,569,647,635,643,637,622,618,608,0,605,605,768,747,874,872,858,810,884,871,5257,4802,5081,4793,29989,29990,29990,29991,29991,29983,29992,29993,29993,29994]} 1. Nf3 {[%emt 0:00:00]} g6 {[%emt 0:00:01]} 2. d4 {[%emt 0:00:08]} Bg7 {[%emt 0:00:01]} 3. g3 {[%emt 0:00:02]} c5 {[%emt 0:00:06]} 4. c4 {[%emt 0:00:26]} cxd4 {[%emt 0:00:06]} 5. Nxd4 {[%emt 0:00:01]} Nc6 {[%emt 0:00:13]} 6. Nc2 {[%emt 0:00:16]} h5 {[%emt 0:00:10]} 7. h3 {[%emt 0:00:07]} d6 {[%emt 0:00:06]} 8. Bg2 {[%emt 0:00:02]} Be6 {[%emt 0:02:35]} 9. Ne3 {[%emt 0:00:10]} Qd7 {[%emt 0:00:00]} 10. Nc3 {[%emt 0:00:04]} Ne5 {[%emt 0:00:04]} 11. Ncd5 {[%emt 0:00:02]} Rc8 {[%emt 0:00:00]} 12. Qb3 {[%emt 0:00:12]} Nh6 {[%emt 0:00:00]} ({Black should play} 12... Nf6 $15) 13. Bd2 $11 {[%emt 0:00:26]} O-O {[%emt 0:00:00]} 14. Rc1 {[%emt 0:00:03]} Nf5 {[%emt 0:00:00]} 15. Nxf5 {[%emt 0:00:02]} Bxf5 {[%emt 0:00:00]} 16. Ne3 {[%emt 0:00:38]} Be6 {[%emt 0:00:00]} 17. h4 {[%emt 0:00:31] [#]} (17. a4 $11 {and White is okay.}) 17... Nxc4 $1 $19 {[%emt 0:00:00]} 18. Nxc4 {[%emt 0:00:15]} b5 {[%emt 0:00:00]} 19. Nb6 {[%emt 0:00:08]} (19. Qa3 $17 Rxc4 (19... bxc4 $2 20. O-O $19) (19... Bxc4 20. b3 $17) 20. Rxc4 bxc4 (20... Bxc4 21. b3 $17) 21. Bc3) 19... axb6 $19 {[%emt 0:00:00]} 20. Qe3 {[%emt 0:00:00]} Bxb2 {[%emt 0:00:06]} 21. Rb1 {[%emt 0:00:01]} Bg7 {[%emt 0:00:07]} (21... Bxa2 $2 22. Rxb2 Bc4 23. O-O $18 (23. Qxb6 Rfd8 $18)) 22. a3 {[%emt 0:00:02]} Qa7 {[%emt 0:00:04]} 23. Bb4 {[%emt 0:00:03]} Rc2 {[%emt 0:00:04]} 24. O-O {[%emt 0:00:02]} Rfc8 {[%emt 0:00:00]} (24... Bc4 $19 25. Rfe1 Rc8) 25. Rfd1 {[%emt 0:00:05]} (25. Be4 $17) 25... Qa6 {[%emt 0:00:03]} (25... Ba2 $19 {and Black stays clearly on top.} 26. Rbc1 Rxc1 27. Rxc1 Bc4) 26. Bd5 {[%emt 0:00:01]} (26. Be4 $17 {was necessary.}) 26... Bxd5 $19 {[%emt 0:00:02]} 27. Rxd5 {[%emt 0:00:01]} R8c7 {[%emt 0:00:01]} 28. Kh2 {[%emt 0:00:05]} R2c4 {[%emt 0:00:01]} 29. Qf3 {[%emt 0:00:04]} Qb7 {[%emt 0:00:01]} 30. Rbd1 {[%emt 0:00:01]} Qc8 {[%emt 0:00:02]} 31. Qe3 {[%emt 0:00:02]} Qe6 {[%emt 0:00:01]} 32. Qxb6 {[%emt 0:00:02]} (32. Qxe6 $142 fxe6 33. Rxb5) 32... R7c6 {[%emt 0:00:02]} 33. Qb8+ {[%emt 0:00:01]} Kh7 {[%emt 0:00:01]} 34. R5d2 $2 {[%emt 0:00:01]} (34. Qe8) 34... Rc2 $2 {[%emt 0:00:02]} (34... Rxh4+ $19 35. Kg1 Qh3 36. gxh4 Be5) 35. Qb7 {[%emt 0:00:01]} (35. Qxb5 $15 R2c4 36. Qd5) 35... Rxd2 {[%emt 0:00:02]} 36. Rxd2 {[%emt 0:00:01] [#]} Bd4 $2 {[%emt 0:00:04][%mdl 8192]} (36... Rc1 $1 $17 37. Qf3 Qc4) 37. Qxc6 $18 {[%emt 0:00:02]} Bxf2 {[%emt 0:00:01]} 38. Qf3 {[%emt 0:00:01]} Be3 {[%emt 0:00:01]} 39. Rd3 {[%emt 0:00:01]} Bb6 {[%emt 0:00:01]} 40. e4 {[%emt 0:00:01]} Qa2+ {[%emt 0:00:02]} 41. Qg2 {[%emt 0:00:02]} Qc4 {[%emt 0:00:01]} 42. Rd1 {[%emt 0:00:02]} f6 {[%emt 0:00:03]} 43. Re1 {[%emt 0:00:05]} Qd4 {[%emt 0:00:02]} 44. Qf3 {[%emt 0:00:03]} Qb2+ {[%emt 0:00:02]} 45. Qe2 {[%emt 0:00:02]} Qe5 {[%emt 0:00:01]} 46. Bd2 {[%emt 0:00:03]} Bc5 {[%emt 0:00:01]} 47. Bb4 {[%emt 0:00:04]} (47. Qxb5 Bg1+ (47... Bxa3 $2 {loses.} 48. Qb3 $18) 48. Kxg1 Qxb5 $19) 47... Bb6 $1 {[%emt 0:00:02]} 48. Rc1 {[%emt 0:00:02]} Bd4 {[%emt 0:00:06]} 49. Qd3 {[%emt 0:00:02]} Bb6 {[%emt 0:00:03]} 50. Rc6 {[%emt 0:00:01]} Bd4 {[%emt 0:00:03]} 51. Bc3 {[%emt 0:00:02]} Bxc3 {[%emt 0:00:03]} 52. Rxc3 {[%emt 0:00:01]} Qe6 {[%emt 0:00:01]} 53. Rc7 {[%emt 0:00:01]} Kg7 {[%emt 0:00:02]} 54. Qd5 {[%emt 0:00:01]} Qg4 {[%emt 0:00:04]} 55. Rxe7+ {[%emt 0:00:02]} Kh6 {[%emt 0:00:01]} 56. Qd2+ {[%emt 0:00:01]} g5 {[%emt 0:00:00]} 57. hxg5+ {[%emt 0:00:02]} (57. Qxd6 Qe2+ 58. Kg1 Qe1+ 59. Kg2 Qe2+ 60. Kg1 Qe1+ 61. Kg2 Qe2+ 62. Kg1 $11) 57... Kg6 {[%emt 0:00:01]} 58. gxf6 {[%emt 0:00:03]} ({Inferior is} 58. Qxd6 Qe2+ 59. Kg1 Qe1+ 60. Kg2 Qe2+ 61. Kg1 Qe1+ 62. Kg2 Qe2+ 63. Kg1 $11) 58... h4 {[%emt 0:00:01]} 59. Rg7+ {[%emt 0:00:01]} 1-0

[Event "European Women Blitz-ch 2024"]
[Site "Monaco"]
[Date "2025.01.10"]
[Round "4.15"]
[White "Narva, Mai"]
[Black "Rakhmangulova, Anastasiya"]
[Result "1-0"]
[Annotator "TA"]
[ECO "B07"]
[WhiteElo "2398"]
[BlackElo "2323"]
[PlyCount "95"]
[EventDate "2025.01.06"]
[EventType "swiss"]
[EventCountry "MNC"]
[SourceTitle "playchess.com"]
[Source "ChessBase"]
[SourceQuality "1"]
[TimeControl "180+2"]

{[%evp 9,95,30,29,24,39,23,41,8,53,39,64,54,58,54,50,54,63,31,109,17,37,39,32,-112,-95,-91,-37,-62,-50,-66,-29,-49,0,-179,9,-327,-43,0,139,107,718,579,608,294,1216,1186,1095,673,695,639,693,637,673,693,684,685,741,727,754,772,895,806,2064,1502,1821,1872,29979,1240,5214,1133,1093,1082,1243,1261,1407,858,896,841,896,890,978,925,999,991,977,969,29998,29999]} 1. e4 {[%emt 0:00:02]} d6 {[%emt 0:00:00]} 2. d4 {[%emt 0:00:02]} Nf6 {[%emt 0:00:02]} 3. f3 {[%emt 0:00:01]} Nbd7 {[%emt 0:00:05]} 4. c4 {[%emt 0:00:04]} e5 {[%emt 0:00:04]} 5. d5 {[%emt 0:00:04]} Be7 {[%emt 0:00:11]} 6. Nc3 {[%emt 0:00:07]} c6 {[%emt 0:00:08]} 7. Be3 {[%emt 0:00:28]} a6 {[%emt 0:00:07]} 8. g4 {[%emt 0:00:27]} O-O {[%emt 0:00:15]} 9. Nge2 {[%emt 0:00:07]} Ne8 {[%emt 0:00:06]} 10. Qd2 {[%emt 0:00:10]} Nc7 {[%emt 0:00:07]} 11. Ng3 {[%emt 0:00:17]} cxd5 $1 {[%emt 0:00:10]} 12. cxd5 {[%emt 0:00:08]} g6 {[%emt 0:00:18] Prevents Nf5} 13. O-O-O {[%emt 0:00:33][%cal Oh2h4]} b5 {[%emt 0:00:01] [#]} (13... Bh4 $1 $14) 14. a3 {[%emt 0:00:11]} (14. h4 $1 $16) 14... Rb8 {[%emt 0:00:10] [#]} 15. h4 $1 {[%emt 0:00:02]} a5 $1 {[%emt 0:00:12][%cal Ob5b4]} 16. g5 {[%emt 0:00:33]} (16. Qh2 $1 $14 {was forced to keep a grip.}) 16... b4 $17 {[%emt 0:00:02]} 17. axb4 {[%emt 0:00:05]} axb4 {[%emt 0:00:01]} 18. Na4 {[%emt 0:00:02]} b3 {[%emt 0:00:14]} 19. Kb1 {[%emt 0:00:05]} Ra8 {[%emt 0:00:04]} 20. Nc3 {[%emt 0:00:09] Active counter play!} Na6 {[%emt 0:00:07]} (20... h5 $15) 21. Bc4 $2 {[%emt 0:00:02]} (21. Nb5 $1 $11) 21... Nac5 $2 {[%emt 0:00:01]} (21... Nb4 $19 {( -> ...Qa5)} 22. Nb5 (22. Bxb3 Ba6 $17) 22... Nc2 23. Bxb3 Nxe3 24. Qxe3 Nc5) 22. Nb5 $2 {[%emt 0:00:02][%mdl 8192]} (22. h5 $1 $11 Qa5 23. Bxb3) 22... Qb6 $2 {[%emt 0:00:06]} ({Weaker is} 22... Nb6 23. Be2 Bd7 24. Na3 Rxa3 25. bxa3 $17) (22... Ba6 $19 {White must now prevent ...Bxb5.} 23. Na3 Bxc4 24. Nxc4 Nb6) 23. h5 $15 {[%emt 0:00:02]} Ra4 {[%emt 0:00:14]} (23... Ba6 $11 {keeps the balance.} 24. Na3 Bxc4 25. Nxc4 Qa6) 24. Na3 $16 {[%emt 0:00:02] Chess con chili.} Rxc4 $4 {[%emt 0:00:13][%mdl 8192]} 25. Nxc4 {[%emt 0:00:01]} Qa7 {[%emt 0:00:01]} 26. Na3 {[%emt 0:00:01]} (26. Qh2 $142) 26... Ba6 $2 {[%emt 0:00:00]} (26... Nb6 27. Qh2 Bd8 28. Bxc5 dxc5) 27. Qh2 $18 {[%emt 0:00:02]} Nf6 {[%emt 0:00:47]} 28. gxf6 {[%emt 0:00:02]} Bxf6 {[%emt 0:00:05]} 29. hxg6 {[%emt 0:00:01]} fxg6 {[%emt 0:00:01]} 30. Bxc5 {[%emt 0:00:03]} dxc5 {[%emt 0:00:00]} 31. d6 {[%emt 0:00:01]} Qd7 {[%emt 0:00:07]} 32. Qd2 {[%emt 0:00:03]} Bb7 {[%emt 0:00:02]} 33. Qc3 {[%emt 0:00:01]} Rb8 {[%emt 0:00:03]} 34. Qxc5 {[%emt 0:00:02]} Kg7 {[%emt 0:00:01]} 35. Rhg1 {[%emt 0:00:02] aiming for Nh5+.} Bc6 {[%emt 0:00:01][%cal Bb7c6,Bc6a4,Ba4d7,Bd7b5,Bb5e2,Be2f3,Bf3e4][%mdl 32]} 36. Nf5+ {[%emt 0:00:01][%cal Bg3f5,Bf5e7,Be7d5,Bd5c7,Bc7e6][%mdl 32]} Kh8 {[%emt 0:00:01]} 37. Ne7 {[%emt 0:00:02]} Ba4 {[%emt 0:00:03]} 38. Qc7 {[%emt 0:00:01]} (38. Nxg6+ $142 hxg6 39. Rxg6 Rf8 40. Rh1+ Qh7 41. Rxh7+ (41. Rgh6 Qxh6 42. Rxh6+ Kg7 $18) 41... Kxh7 42. Rg2 (42. Rxf6 Rxf6 43. Qa7+ Kh6 $18) 42... Rf7 43. Rh2+ Kg7 44. Qc8) 38... Re8 {[%emt 0:00:04]} 39. Qxd7 {[%emt 0:00:02]} Bxd7 {[%emt 0:00:00]} 40. Nd5 {[%emt 0:00:01]} Bh4 {[%emt 0:00:02]} 41. Nc4 {[%emt 0:00:02]} Bb5 {[%emt 0:00:01]} 42. Ncb6 {[%emt 0:00:01]} Rd8 {[%emt 0:00:00]} 43. Nc7 {[%emt 0:00:03]} Be2 {[%emt 0:00:01] [#]} 44. Ne6 $1 {[%emt 0:00:04]} Rb8 {[%emt 0:00:02]} (44... Re8 45. Nc5) 45. Rd2 {[%emt 0:00:02]} Bxf3 {[%emt 0:00:02] [#]} 46. d7 $1 {[%emt 0:00:05] Threatening mate with Nc8.} Bxe4+ {[%emt 0:00:02]} 47. Kc1 {[%emt 0:00:01]} Rxb6 {[%emt 0:00:02]} 48. d8=Q+ {[%emt 0:00:02]} 1-0

[Event "European Women Blitz-ch 2024"]
[Site "Monaco"]
[Date "2025.01.10"]
[Round "4.16"]
[White "Osmak, Yuliia"]
[Black "Rudzinska, Michalina"]
[Result "0-1"]
[Annotator "TA"]
[ECO "B22"]
[WhiteElo "2463"]
[BlackElo "2226"]
[PlyCount "116"]
[EventDate "2025.01.06"]
[EventType "swiss"]
[EventCountry "MNC"]
[SourceTitle "playchess.com"]
[Source "ChessBase"]
[SourceQuality "1"]
[TimeControl "180+2"]

{[%evp 13,116,12,16,20,12,17,13,12,22,23,16,7,12,10,7,-3,0,7,11,-57,-31,-109,-134,-131,-115,-117,-110,-131,-31,-43,-47,-55,-20,-54,-30,-39,-33,-54,-35,-58,-67,-63,-74,-73,64,0,-16,0,0,-97,-98,-92,-80,-205,-193,-246,-239,-231,-194,-285,-222,-297,-280,-267,-208,-313,-32,-189,-183,-242,-242,-236,0,0,0,0,0,-293,-241,-526,-505,-472,-335,-339,-187,-185,-194,-182,-192,-183,-170,-177,-159,-177,-170,-550,-561,-5302,-5293,-2108,-1935,-29995,-29996,-29996,-29997]} 1. e4 {[%emt 0:00:01]} c5 {[%emt 0:00:01]} 2. Nf3 {[%emt 0:00:03]} e6 {[%emt 0:00:01]} 3. c3 {[%emt 0:00:02]} d5 {[%emt 0:00:02]} 4. exd5 {[%emt 0:00:03]} Qxd5 {[%emt 0:00:01]} 5. d4 {[%emt 0:00:01]} Nf6 {[%emt 0:00:02]} 6. Na3 {[%emt 0:00:04]} a6 {[%emt 0:00:02]} 7. Nc4 {[%emt 0:00:02]} Nbd7 {[%emt 0:00:02]} 8. a4 {[%emt 0:00:06]} cxd4 {[%emt 0:00:04]} 9. Qxd4 {[%emt 0:00:05]} Bc5 {[%emt 0:00:01]} 10. Qxd5 {[%emt 0:00:03]} (10. Qh4 {with more complications.} O-O 11. Be2 b5 12. Ne3) 10... Nxd5 {[%emt 0:00:01]} 11. a5 {[%emt 0:00:04]} O-O {[%emt 0:00:06]} 12. Be2 {[%emt 0:00:01]} Ba7 {[%emt 0:00:09]} 13. O-O {[%emt 0:00:03]} Nc5 {[%emt 0:00:01]} 14. Ra3 {[%emt 0:00:14]} Bd7 {[%emt 0:00:12]} 15. Nce5 {[%emt 0:00:07]} Be8 {[%emt 0:00:06]} 16. Bc4 {[%emt 0:00:03]} (16. c4 $11 Nb4 17. Bd1) 16... Bb5 $15 {[%emt 0:00:08]} 17. Rd1 {[%emt 0:00:16]} (17. Bxb5 $15 axb5 18. Nd4) 17... Ne4 $17 {[%emt 0:00:30]} 18. Nd4 {[%emt 0:00:09]} Bxc4 {[%emt 0:00:11]} 19. Nxc4 {[%emt 0:00:01]} Rac8 {[%emt 0:00:11]} 20. Ne3 {[%emt 0:00:07]} Nf4 {[%emt 0:00:08] Black has more active pieces.} (20... Rfd8 $17 21. Re1 Nb4) 21. Kf1 {[%emt 0:00:14]} Rfd8 {[%emt 0:00:13]} 22. f3 {[%emt 0:00:29]} Nf6 {[%emt 0:00:11]} 23. Nec2 {[%emt 0:00:10]} N4d5 {[%emt 0:00:05]} 24. Bg5 {[%emt 0:00:06]} h6 {[%emt 0:00:17]} 25. Bxf6 {[%emt 0:00:02]} Nxf6 {[%emt 0:00:04]} 26. Raa1 {[%emt 0:00:10]} Rd5 {[%emt 0:00:08]} 27. Nb4 {[%emt 0:00:06]} Rh5 {[%emt 0:00:02]} 28. h3 {[%emt 0:00:04]} e5 {[%emt 0:00:04]} (28... g6 $17) 29. Ne2 {[%emt 0:00:02]} (29. g4 $1 $14) 29... e4 $1 $36 {[%emt 0:00:01][%mdl 2048] Black is more active.} 30. Ng3 {[%emt 0:00:06][%csl LRe4,LRh5]} Re5 {[%emt 0:00:10]} 31. f4 {[%emt 0:00:08]} (31. Re1 $11) 31... Rb5 $17 {[%emt 0:00:15]} 32. Re1 {[%emt 0:00:20]} e3 {[%emt 0:00:02]} 33. Re2 {[%emt 0:00:13]} (33. Red1 $17) 33... Rc4 $19 {[%emt 0:00:03]} 34. Nd3 {[%emt 0:00:18]} (34. Ke1 $142) 34... Rd5 {[%emt 0:00:02]} 35. Rd1 {[%emt 0:00:02]} Rxf4+ {[%emt 0:00:22]} (35... Rxa5 36. Rc2) 36. Nxf4 {[%emt 0:00:01]} (36. Ke1 {was forced.} Rh4 37. Nf1) 36... Rxd1+ {[%emt 0:00:01]} 37. Re1 {[%emt 0:00:01]} Rd2 {[%emt 0:00:02]} 38. Re2 {[%emt 0:00:02]} Rd7 {[%emt 0:00:06]} 39. Re1 {[%emt 0:00:03]} (39. Ke1 $142) 39... Re7 $2 {[%emt 0:00:03]} (39... g6 $19 40. Nfe2 Rd2) 40. Nge2 $2 {[%emt 0:00:02]} ({Better is} 40. Rd1 $1 $15) 40... Ne4 {[%emt 0:00:03]} 41. Rd1 {[%emt 0:00:03] [#]} (41. Nd4 {might work better.}) 41... Nd2+ $1 {[%emt 0:00:02]} 42. Ke1 {[%emt 0:00:01]} Nc4 $2 {[%emt 0:00:05]} (42... Re5 $19 {[%cal Oe5f5] Strongly threatening ...Rf5!.} 43. Nd4 Rxa5) 43. Rd8+ $11 {[%emt 0:00:02]} Kh7 {[%emt 0:00:01]} 44. Nd5 {[%emt 0:00:01]} Re5 {[%emt 0:00:03]} 45. Ndf4 $2 {[%emt 0:00:05][%mdl 8192]} (45. b4 $11 {and White stays safe.}) 45... Nxb2 {[%emt 0:00:02]} 46. Rd7 $2 {[%emt 0:00:03]} (46. Nd5) 46... Rxa5 $19 {[%emt 0:00:03]} 47. Nd4 {[%emt 0:00:02]} Ra1+ {[%emt 0:00:02]} 48. Ke2 {[%emt 0:00:01]} Nc4 {[%emt 0:00:01]} (48... Na4 $142 49. Nd5 Ra3) 49. Rxb7 {[%emt 0:00:02]} Bxd4 {[%emt 0:00:04]} 50. cxd4 {[%emt 0:00:01][%mdl 4096] Endgame KRN-KRN. Black is two pawns up.} Ra2+ {[%emt 0:00:01]} 51. Kd3 {[%emt 0:00:02]} Nd6 {[%emt 0:00:02]} 52. Rd7 {[%emt 0:00:02]} Ra3+ {[%emt 0:00:01]} 53. Ke2 {[%emt 0:00:02]} Nf5 {[%emt 0:00:01]} 54. g4 $2 {[%emt 0:00:04] [#]} (54. Nd3) 54... Ng3+ $1 {[%emt 0:00:02]} 55. Kf3 {[%emt 0:00:01]} e2+ {[%emt 0:00:01]} 56. Kf2 {[%emt 0:00:01] [#]} Rf3+ $3 {[%emt 0:00:04][%mdl 512]} 57. Ke1 {[%emt 0:00:04]} (57. Kxf3 e1=Q) 57... Rf1+ {[%emt 0:00:01]} 58. Kd2 {[%emt 0:00:01]} e1=Q+ {[%emt 0:00:02]} 0-1